Cogmind - Beta 13 @@@ ROGUE MODE // 2024.04.30 @ 13:30:15 Player: WarMechanic Result: Destroyed by D-53 Grenadier with Mini Grenade Launcher Performance ------------- Evolutions (0) 0 Regions Visited (2) 400 Robots Destroyed (24) 120 Value Destroyed (548) 548 Prototype IDs (0) 0 Alien Tech Used (0) 0 Bonus (46) 46 TOTAL SCORE: 1114 Bonus ------- Follower Combat Kills 67 Friendly Fire -21 Cogmind --------- Core Integrity 0/250 Matter 287/300 Energy 100/100 System Corruption 0% Temperature Cool (0) Movement Treading (480) Ox4 Location -10/Mines Parts ------- > --- POWER (1) -------- (None) > --- PROPULSION (2) --- Light Treads > --- UTILITY (2) ------ Huge Storage Unit Hacking Suite > --- WEAPON (2) ------- Assault Rifle Assault Rifle > --- INVENTORY (25) --- Ion Engine Light Nuclear Core Light Treads Light Treads Wheel Medium Storage Unit Transport Network Coupler Beam Cannon Light Assault Rifle Light Cannon Datajack Mining Laser Peak State ------------ > --- POWER ------------ Ion Engine > --- PROPULSION ------- Light Treads Light Treads > --- UTILITY ---------- Huge Storage Unit Hacking Suite > --- WEAPON ----------- Assault Rifle Light Assault Rifle > --- INVENTORY -------- Ion Engine Light Treads Light Treads Medium Storage Unit Transport Network Coupler Beam Cannon Assault Rifle Light Cannon Datajack Mining Laser [Rating: 10] Favorites ----------- Power Ion Engine Engine Ion Engine Propulsion Light Treads Treads Light Treads Utility Hacking Suite Storage Medium Storage Unit Hackware Hacking Suite Weapon Assault Rifle Energy Gun Medium Laser Ballistic Gun Assault Rifle Build | -11 -10 -10 ------- Run | Yrd Mat Min Slots Evolved . | . . . Power . | . . . Propulsion . | . . . Utility . | . . . Weapon . | . . . Parts Attached 18 | 5 10 3 Power 3 | 1 1 1 Engine 3 | 1 1 1 Core . | . . . Reactor . | . . . Propulsion 7 | 2 5 . Treads 7 | 2 5 . Leg . | . . . Wheel . | . . . Hover . | . . . Flight . | . . . Utility 3 | . 2 1 Device . | . . . Storage 2 | . 1 1 Processor . | . . . Hackware 1 | . 1 . Protection . | . . . Artifact . | . . . Weapon 5 | 2 2 1 Energy Gun 1 | 1 . . Energy Cannon . | . . . Ballistic Gun 4 | 1 2 1 Ballistic Cannon . | . . . Launcher . | . . . Special Weapon . | . . . Impact Weapon . | . . . Slashing Weapon . | . . . Piercing Weapon . | . . . Special Melee Weapon . | . . . Unidentified Prototypes . | . . . Parts Lost 4 | . 2 2 Power 1 | . . 1 Propulsion 1 | . . 1 Utility . | . . . Weapon 2 | . 2 . Highest Loss Streak 2 | . 1 2 To Critical Strikes . | . . . Average Slot Usage (%) 87 | . 80 99 Engine 14 | . 14 14 Treads 27 | . 27 27 Storage 7 | . 2 14 Hackware 9 | . 7 14 Energy Gun 7 | . 11 . Ballistic Gun 20 | . 16 28 Naked Turns . | . . . Heaviest Build 89 | 9 18 89 Greatest Support 40 | 40 40 40 Greatest Overweight (x) 2 | . 2 2 Average Overweight (x) . | . . . Largest Inventory Capacity 25 | 5 10 25 Average Capacity 10 | 5 6 19 Most Carried 12 | 4 6 12 Average Carried 5 | 2 4 8 Final Capacity 25 | 5 10 25 Final Carried 12 | 4 6 12 Class Distribution -------------------- 80% | Mutant 19% | Scavenger-Mutant Dominant Class ---------------- Mutant | -10/Materials Mutant | -10/Mines Resources | -11 -10 -10 ----------- Run | Yrd Mat Min Matter Collected 543 | 170 325 48 Remotely . | . . . Salvage Created 514 | . 487 27 Parts 36 | . 32 4 Haulers Intercepted 1 | . 1 . Recyclers Shooed . | . . . Parts Field Recycled . | . . . Retrieved Matter . | . . . Parts Self-Destructed . | . . . Prevented . | . . . Kills | -11 -10 -10 ------- Run | Yrd Mat Min Combat Hostiles Destroyed 18 | . 16 2 Guns 14 | . 12 2 AOE 4 | . 4 . Classes Destroyed 7 | . 7 . Worker 2 | . 2 . Builder 1 | . 1 . Hauler 1 | . 1 . Operator 1 | . 1 . Watcher 1 | . 1 . Swarmer 7 | . 5 2 Grunt 11 | . 11 . Best Kill Streak 8 | . 8 2 Combat Bots Only 4 | . 4 2 Max Kills in Single Turn 8 | . 8 1 Gunslinging . | . . . Exploded 4 | . 4 . Melee . | . . . Uniques/NPCs Destroyed . | . . . Combat | -11 -10 -10 -------- Run | Yrd Mat Min Hostile Shots Fired 141 | . 119 22 Missed 46 | . 41 5 Damage Taken 1244 | . 860 384 Core 260 | . 221 39 Absorbed by Shields . | . . . Regen/Repaired (Parts) 97 | . 97 . Core Remaining (%) 100 | 100 . . Volleys Fired 78 | . 71 7 Largest 2 | . 2 2 Hottest 70 | . 70 40 Shots Fired 134 | . 120 14 Gun 134 | . 120 14 Cannon . | . . . Launcher . | . . . Special . | . . . Kinetic 72 | . 58 14 Thermal 62 | . 62 . Explosive . | . . . Electromagnetic . | . . . Robot Hit Streak 9 | . 9 5 Robot Miss Streak 5 | . 5 3 Penetration Max . | . . . Secondary Targets . | . . . Shots Hit Robots 81 | . 74 7 Core Hits 36 | . 32 4 Critical Kills . | . . . Critical Parts Destroyed . | . . . Critical Strikes 3 | . 3 . Burn 3 | . 3 . Melee Attacks . | . . . Impact . | . . . Slashing . | . . . Piercing . | . . . Sneak Attacks . | . . . Combat Hostiles . | . . . Follow-up Attacks . | . . . Damage Inflicted 2048 | . 1930 118 Guns 1044 | . 941 103 Cannons . | . . . Explosions 983 | . 983 . Melee . | . . . Ramming 21 | . 6 15 Kinetic 556 | . 453 103 Thermal 1471 | . 1471 . Explosive . | . . . Electromagnetic . | . . . Impact . | . . . Slashing . | . . . Piercing . | . . . Highest Corruption . | . . . Average Corruption . | . . . Corruption Purged . | . . . Corruption Blocked . | . . . Overload Shots . | . . . Overflow Damage 137 | . 137 . Projectiles . | . . . Explosions 137 | . 137 . Melee . | . . . Knockbacks . | . . . Impact . | . . . Kinetic . | . . . Secondary . | . . . Self-Inflicted Damage 84 | . 84 . Shots 1 | . 1 . Rammed 6 | . 3 3 Targets Rammed 6 | . 3 3 Kicked . | . . . Crushed . | . . . Highest Temperature 220 | . 220 . Average Temperature 70 | . 70 . Received Heat Transfer 291 | . 291 . Siege Activations . | . . . Robots Corrupted . | . . . Combat Hostiles . | . . . Parts Fried . | . . . Impact Corruptions . | . . . Robots Melted . | . . . Combat Hostiles . | . . . Parts Melted 9 | . 8 1 Heat Transferred 2365 | . 2365 . Parts Sabotaged . | . . . Parts Stolen . | . . . Parts Stripped . | . . . Power Chain Reactions . | . . . Alert | -11 -10 -10 ------- Run | Yrd Mat Min Peak Influence 336 | . 336 151 Initial 93 | . . 93 Average 118 | . 159 74 Maximum Alert Level 1 | . 1 . Low Security (%) 78 | 100 62 100 Level 1 21 | . 37 . Level 2 . | . . . Level 3 . | . . . Level 4 . | . . . Level 5 . | . . . High Security . | . . . Max Security . | . . . Squads Dispatched 5 | . 5 . Investigation 3 | . 3 . Extermination . | . . . Reinforcement 2 | . 2 . Assault . | . . . Garrison . | . . . Intercept . | . . . Searches Triggered . | . . . Construction Impeded . | . . . Haulers Reinforced . | . . . Active Scanning Responses . | . . . Cargo Convoy Interrupts . | . . . Stealth | -11 -10 -10 --------- Run | Yrd Mat Min Distress Signals . | . . . Communications Jammed . | . . . Distress Signals . | . . . Times Spotted 36 | . 29 7 Peak Tracking Total 7 | . 7 3 Tactical Retreats 2 | . 1 1 Traps | -11 -10 -10 ------- Run | Yrd Mat Min Traps Triggered 2 | . 2 . Indirectly . | . . . Trap Hack Attempts . | . . . Triggered . | . . . Disarmed . | . . . Reprogrammed . | . . . Reused . | . . . Traps Extracted . | . . . Installed . | . . . Triggered . | . . . Machines | -11 -10 -10 ---------- Run | Yrd Mat Min Machines Disabled 5 | . 5 . Max in Single Turn 5 | . 5 . Machines Repaired . | . . . Machines Dismantled . | . . . Machines Sabotaged . | . . . Overloaded Fab Kills . | . . . Hacking | -11 -10 -10 --------- Run | Yrd Mat Min Machines Accessed 5 | . 5 . Terminals 4 | . 4 . Fabricators . | . . . Repair Stations 1 | . 1 . Recycling Units . | . . . Scanalyzers . | . . . Garrison Access . | . . . Total Hacks 18 | . 18 . Successful 7 | . 7 . Failed 11 | . 11 . Catastrophic 4 | . 4 . Database Lockouts . | . . . Manual 16 | . 16 . Terminals 16 | . 16 . Fabricators . | . . . Repair Stations 2 | . 2 . Recycling Units . | . . . Scanalyzers . | . . . Garrison Access . | . . . Terminal Hacks 5 | . 5 . Part Schematic 2 | . 2 . Branch Access Points 1 | . 1 . Terminal Index 1 | . 1 . Zone Layout 1 | . 1 . Fabricator Hacks . | . . . Repair Station Hacks 2 | . 2 . Scan Component 1 | . 1 . Repair 1 | . 1 . Recycling Unit Hacks . | . . . Scanalyzer . | . . . Garrison Access Hacks . | . . . Unauthorized Hacks . | . . . Terminals . | . . . Fabricators . | . . . Repair Stations . | . . . Recycling Units . | . . . Scanalyzers . | . . . Garrison Access . | . . . Data Cores Recovered . | . . . Used . | . . . Hacking Detections 4 | . 4 . Full Trace Events 4 | . 4 . Feedback Events . | . . . Feedback Blocked . | . . . Robot Schematics Acquired . | . . . Robots Built . | . . . Authchips . | . . . Time . | . . . Total Robot Build Rating . | . . . Part Schematics Acquired 2 | . 2 . Parts Built . | . . . Authchips . | . . . Time . | . . . Total Part Build Rating . | . . . Parts Repaired 1 | . 1 . Time 26 | . 26 . Parts Recycled . | . . . Recycled Matter . | . . . Retrieved Matter . | . . . Retrieved Components . | . . . Parts Scanalyzed . | . . . Part Schematics Acquired . | . . . Parts Damaged . | . . . Bothacking | -11 -10 -10 ------------ Run | Yrd Mat Min Used RIF Installer . | . . . Robots Hacked . | . . . Non-combat . | . . . Combat . | . . . Robot Hacks Applied . | . . . Relay Couplers Released . | . . . Fabnet Peak Effective % . | . . . Robots Rewired . | . . . Allies Hacked . | . . . Hacks Repelled . | . . . Allies | -11 -10 -10 -------- Run | Yrd Mat Min Total Allies 4 | . . 4 Largest Group 4 | . . 4 Highest-Rated Group 71 | . . 71 Highest-Rated Ally 31 | . . 31 Total Orders . | . . . Ally Attacks 21 | . . 21 Total Damage 178 | . . 178 Kills 4 | . . 4 Allies Corrupted . | . . . Allies Melted . | . . . Intel | -11 -10 -10 ------- Run | Yrd Mat Min Robot Analysis Total . | . . . Derelict Logs Recovered 1 | . . 1 Drone Launches . | . . . Drone Recoveries . | . . . Exploration | -11 -10 -10 ------------- Run | Yrd Mat Min Turns Passed 1796 | 137 1046 613 Spaces Moved 825 | 89 496 240 Core 20 | 17 3 . Treads 805 | 72 493 240 Legs . | . . . Wheels . | . . . Hover . | . . . Flight . | . . . Fastest Speed 50 | 50 150 160 Average Speed 178 | 138 159 232 Slowest Speed 320 | 160 160 320 Overloaded Moves . | . . . Propulsion Burnouts . | . . . Robots Hopped . | . . . Cave-ins Triggered . | . . . Exploration Rate (%) 35 | 4 55 46 Regions Visited 2 Branch Regions 1 Pre-discovered Areas 1 | . . 1 Known Exits Taken 1 | . 1 . Unknown Exits Taken 1 | 1 . . Scrap Searched 1 | . . 1 Spaces Dug . | . . . Terrain Destroyed 35 | . 35 . Melee . | . . . Projectile . | . . . AOE 35 | . 35 . Terrain Rammed . | . . . Walls Destroyed . | . . . Machines Disabled . | . . . Actions | -11 -10 -10 --------- Run | Yrd Mat Min Total 1013 | 102 632 279 Wait 50 | . 30 20 Move 823 | 88 495 240 Hop . | . . . Pick Up 30 | 9 15 6 Fast Attach 1 | . 1 . Attach 10 | 5 5 . Detach . | . . . Swap 7 | . 4 3 Drop 8 | . 8 . Fire 78 | . 71 7 Melee . | . . . Ram . | . . . Kick . | . . . Crush 6 | . 3 3 Escape Stasis . | . . . Rewire . | . . . Trap . | . . . Miscellaneous . | . . . Route ------- -11/Scrapyard -10/Materials (discovered 3 exits: [*Mat] / *Min x2) -10/Mines History --------- Turn | Location | Event 5 | -11/Scrapyard | Discovered new exit (range 15) 138 | -11/Scrapyard | Entered Materials 309 | -10/Materials | Build established: Mutant 495 | -10/Materials | Repaired Lgt. Treads 653 | -10/Materials | Discovered new exit (range 8) 653 | -10/Materials | Identified exit to Mines 679 | -10/Materials | Discovered new exit (range 4) 893 | -10/Materials | Core integrity fell below 50% 1009 | -10/Materials | Core integrity fell below 20% 1184 | -10/Materials | Entered Mines 1196 | -10/Mines | Assisted by bots powering up and referring to "LRC-V3" 1231 | -10/Mines | Learned location of Zion (-7) 1283 | -10/Mines | Received a Mining Laser from a helpful Derelict 1346 | -10/Mines | Build established: Scavenger-Mutant 1700 | -10/Mines | Build established: Mutant 1780 | -10/Mines | Assembled infested the area 1797 | -10/Mines | Destroyed by D-53 Grenadier with Mini Grenade Launcher Last Messages --------------- 01685_ G-34 Mercenary destroyed. 01690_ R-06 Scavenger collects Heat Sink. 01691_ Trooper 1a destroyed. 01694_ R-06 Scavenger collects Aluminum Leg. 01698_ S-10 Pest destroyed. 01699_ R-06 Scavenger collects Particle Gun. 01703_ R-06 Scavenger collects Ion Engine. 01708_ Acquired Wheel. 01715_ Slammed into R-06 Scavenger. 01722_ Acquired Lgt. Nuclear Core. 01727_ Acquired 30 matter. 01736_ K-01 Serf collects debris. 01780_ ALERT: Infestation in the mines, dispatching Demolisher response squad. 01789_ C-30 ARC bursts open, deploying its payload. 01789_ D-53 Grenadier unfolds itself. 01789_ Mercenary 1a destroyed. 01789_ Seismic Survey Station disabled. 01789_ Lgt. Treads destroyed. 01797_ Ion Engine destroyed. Map ----- +----------------------------------------------------+ | ?? ????????????## ?? ##????????????? | | ?? ???????????## ? ?????????????? | | ?? ??????????# """ #?????????????? | | ?# #???????## """ #?????????????? | | ?# #??????## """ #??????????????? | | ?# #??????# #?? #???????????????? | | ?# #??????# #??? #???????????????? | | ?# #?????## #???# ##?????#????????? | | ## ####### ##?## ### ####?????? | | ## ## ### ????? | | ????? | | % #???????? | | ##### ### ## #???????? | | #???##%#?###### ### #### ##???????? | | ?????#%#??##### #??# ##??????????????? | | ?????#%#??# #???###???????????????? | | ?????# #??# ###%!##????????????????????? | | ###### #??# ### % ##???????????????????? | | #?## = ##??????????????????? | | ########?# % % ##?????????????????? | | ?????????# ## ####?###??????????? | | ?????????# #### # # ##?????????? | | ?????????# ???# = ##????????? | | #????????# ???# #????????? | | #???????# #???# # #?????? | | #?????# ????# @ #?????? | | #?????## ????## d%d #?????? | | #??????### ?????## #?????? | | ##????????## ??????# ##?????? | | #??????????# ??????## #####??????? | | ???????????# ????????########??????????? | | ???????????????????????????????????????? | | ???????????????????????????????????????? | | ???????????????????????????????????????? | | ???????????????????????????????????????? | | ???????????????????????????????????????? | | ???????????????????????????????????????? | | ???????????????????????????????????????? | | ???????????????????????????????????????? | | ???????????????????????????????????????? | | ???????????????????????????????????????? | | ???????????????????????????????????????? | | ???????????????????????????????????????? | | ???????????????????????????????????????? | | ???????????????????????????????????????? | | ???????????????????????????????????????? | | ???????????????????????????????????????? | | ???????????????????????????????????????? | | ???????????????????????????????????????? | | ???????????????????????????????????????? | +----------------------------------------------------+ Best States ------------- Heat Dissipation 25 Energy Generation 10 Energy Capacity 250 Matter Stores 300 Matter Capacity 300 Sight Range 16 Terrain Scan Density 10 Evasion (%) 50 Recoil Reduction 2 Offensive Hacking 10 Item Schematics ----------------- Mining Claw | -10/Materials | Hacked Datajack | -10/Materials | Hacked Robot Schematics ------------------ None Fabricated ------------ Nothing Alien Tech Used ----------------- None Achievements -------------- None Challenges ------------ None Game ------ Seed PortableArcMatrix Manual? 0 Play Time 00:21:00 Cumulative 1.8 hours Start 2024.04.30 @ 13:11:28 End 2024.04.30 @ 13:30:15 Sessions 1 Manual Loads 0 Difficulty Rogue Special Mode None Game No. 3 Rogue 3 Adventurer 0 Explorer 0 Win Type - Total 0 Types 0/0/0/0/0/0/0/0/0 Lore% 0 Gallery% 3 Achievement% 3 Wizard Run 0 Options --------- Layout 0 ASCII 1 Keyboard 0 Movement Arrows Keybinds 0 Fullscreen 1 Font 18/SmallcapsGlow Map View 76x50 Zoom Use 0% Tactical HUD 1 Map Filters NONE Filters NONE Steam 1 RUN: e7f59a02-8446-4a8c-b5cc-a6df1883f9b3